bitfinex/quotes_BTCUSD_20240730
["timestamp","ask_amount","ask_price","bid_price","bid_amount"]
[1722337671948,0.02387365,66698.0,66691.0,0.635486]
[1722337672179,0.17380265,66698.0,66692.0,0.149942]
[1722337672844,0.17380265,66698.0,66691.0,0.635486]
[1722337672845,0.149933,66697.0,66691.0,0.3356]
[1722337673082,0.02387365,66698.0,66691.0,0.143]
[1722337673305,0.14994,66693.0,66691.0,0.0825]
[1722337673548,0.299872,66696.0,66688.0,0.211251]
[1722337673549,0.149939,66694.0,66688.0,0.211251]
[1722337673782,0.40693565,66698.0,66686.0,0.0764]
[1722337673783,0.149947,66691.0,66686.0,0.0764]
[1722337674022,0.149948,66690.0,66686.0,0.0764]
[1722337675468,0.32443914,66691.0,66686.0,0.226356]
[1722337675469,0.17449314,66691.0,66686.0,0.226356]
[1722337675671,0.17449314,66691.0,66686.0,0.0864]
[1722337676107,0.32444014,66691.0,66686.0,0.0864]
[1722337676328,0.149948,66690.0,66686.0,0.0864]
[1722337676491,0.149948,66690.0,66686.0,0.0764]
[1722337676800,0.149948,66690.0,66686.0,0.0854]
[1722337677983,0.149948,66690.0,66686.0,0.0764]
[1722337678385,0.149948,66690.0,66686.0,0.0864]
[1722337678587,0.14995,66689.0,66686.0,0.0864]
[1722337679603,0.14995,66689.0,66686.0,0.0764]
[1722337680033,0.32444014,66691.0,66686.0,0.0874]
[1722337680236,0.14995,66689.0,66686.0,0.0874]
[1722337681436,0.02454814,66691.0,66686.0,0.0874]
[1722337681630,0.17449414,66691.0,66686.0,0.237356]
[1722337681796,0.149947,66690.0,66686.0,0.0874]
[1722337682203,0.149947,66690.0,66686.0,0.0764]
[1722337682422,0.02537814,66691.0,66686.0,0.0764]
[1722337682675,0.149951,66689.0,66686.0,0.0854]
[1722337682834,0.149951,66689.0,66686.0,0.0764]
[1722337683036,0.149952,66688.0,66686.0,0.0764]
[1722337683271,0.14995,66689.0,66686.0,0.0864]
[1722337684264,0.17532414,66691.0,66687.0,0.07534716]
[1722337684470,0.00083,66691.0,66688.0,0.149951]
[1722337684686,0.00083,66691.0,66687.0,0.22530016]
[1722337685064,0.00083,66691.0,66687.0,0.07534716]
[1722337685255,0.00083,66691.0,66687.0,0.22529916]
[1722337685749,0.00083,66691.0,66688.0,0.009]
[1722337686184,0.00083,66691.0,66687.0,0.22529916]
[1722337686389,0.00083,66691.0,66687.0,0.08434716]
[1722337686586,0.00083,66691.0,66687.0,0.009]
[1722337686787,0.00083,66691.0,66686.0,0.226355]
[1722337687449,0.00083,66691.0,66686.0,0.226356]
[1722337688091,0.00083,66691.0,66687.0,0.0015542]
[1722337688267,0.00083,66691.0,66686.0,0.226356]
[1722337688489,0.00083,66691.0,66688.0,0.02357935]
[1722337688647,0.00083,66691.0,66687.0,0.02357948]
[1722337688843,0.00083,66691.0,66689.0,0.02357921]
[1722337689073,0.00083,66691.0,66688.0,0.03257935]
[1722337689292,0.00083,66691.0,66690.0,0.02357907]
[1722337689521,0.00083,66691.0,66689.0,0.02357921]
[1722337689665,0.00083,66691.0,66690.0,0.02357907]
[1722337690075,0.00083,66691.0,66688.0,0.009]
[1722337690269,0.149944,66692.0,66690.0,0.02357907]
[1722337690470,0.149944,66692.0,66689.0,0.02357921]
[1722337690789,0.149944,66692.0,66690.0,0.02357907]
[1722337690989,0.149944,66692.0,66687.0,0.22530016]
[1722337691190,0.149944,66692.0,66687.0,0.22530116]
[1722337691437,0.149944,66692.0,66688.0,0.02357935]
[1722337692092,0.149949,66690.0,66688.0,0.02357935]
[1722337692277,0.149949,66689.0,66688.0,0.02357935]
[1722337692477,0.149949,66689.0,66686.0,0.0764]
[1722337692776,0.149952,66688.0,66686.0,0.0854]
[1722337692951,0.449845,66690.0,66686.0,0.0764]
[1722337693145,0.14995,66689.0,66686.0,0.0764]
[1722337693349,0.14995,66689.0,66688.0,0.01]
[1722337693771,0.14995,66689.0,66685.0,0.000913]
[1722337693974,0.14995,66689.0,66686.0,0.12464641]
[1722337694175,0.14995,66689.0,66685.0,0.000913]
[1722337694356,0.14995,66689.0,66686.0,0.12464641]
[1722337694554,0.14995,66689.0,66685.0,0.000913]
[1722337694754,0.14995,66689.0,66686.0,0.12464641]
[1722337694966,0.14995,66689.0,66685.0,0.000913]
[1722337695138,0.299888,66692.0,66687.0,0.07534716]
[1722337695139,0.299886,66692.0,66687.0,0.07534716]
[1722337695341,0.149947,66690.0,66687.0,0.07534716]
[1722337695538,0.149945,66691.0,66687.0,0.07534716]
[1722337695728,0.149947,66690.0,66687.0,0.07534716]
[1722337696339,0.149947,66690.0,66688.0,0.12464336]
[1722337696544,0.149947,66690.0,66689.0,0.12464336]
[1722337697034,0.149947,66690.0,66687.0,0.07534716]
[1722337697693,0.149949,66689.0,66686.0,0.011]
[1722337697915,0.149949,66689.0,66687.0,0.12464642]
[1722337698105,0.149949,66689.0,66686.0,0.011]
[1722337698380,0.149949,66689.0,66687.0,0.12464642]
[1722337698581,0.149949,66689.0,66685.0,0.193513]
[1722337698822,0.149949,66689.0,66686.0,0.12464642]
[1722337698972,0.149949,66689.0,66687.0,0.12464642]
[1722337699166,0.149949,66689.0,66685.0,0.193513]
[1722337699367,0.149949,66689.0,66686.0,0.12464642]
[1722337699546,0.149949,66689.0,66687.0,0.12464642]
[1722337699755,0.149949,66689.0,66685.0,0.193513]
[1722337699756,0.149949,66689.0,66686.0,0.011]
[1722337699951,0.149949,66689.0,66687.0,0.12464642]
[1722337700163,0.149949,66689.0,66685.0,0.193513]
[1722337700164,0.149949,66689.0,66688.0,0.12464642]
[1722337700371,0.749747,66689.0,66688.0,0.12464642]
[1722337700573,0.0793,66698.0,66685.0,0.011913]
[1722337700574,0.149956,66686.0,66685.0,0.011913]
[1722337700773,0.149956,66686.0,66685.0,0.13656384]
[1722337700774,0.449869,66686.0,66685.0,0.13656384]
[1722337701182,0.449869,66686.0,66685.0,0.13656499]
[1722337701377,0.749782,66686.0,66685.0,0.011913]
[1722337702009,0.749782,66686.0,66685.0,0.000913]
[1722337702615,1.07458044,66686.0,66685.0,0.000913]
[1722337703628,1.07458044,66686.0,66685.0,0.014913]
[1722337704329,1.14793076,66686.0,66685.0,0.014913]
[1722337704675,1.13858044,66686.0,66685.0,0.014913]
[1722337704877,1.14793094,66686.0,66685.0,0.014913]
[1722337705581,1.13858044,66686.0,66685.0,0.000913]
[1722337705815,1.13858044,66686.0,66685.0,0.008913]
[1722337706157,1.14793102,66686.0,66685.0,0.008913]
[1722337706365,1.13858044,66686.0,66685.0,0.008913]
[1722337710002,2.09380678,66686.0,66685.0,0.008913]
[1722337710209,2.09380678,66686.0,66683.0,0.000924]
[1722337710210,0.1499,66684.0,66683.0,0.000924]
[1722337710413,0.1499,66684.0,66680.0,0.009273]
[1722337710414,1.219672,66681.0,66680.0,0.009273]
[1722337710561,1.7849315,66681.0,66680.0,0.009273]
[1722337710776,1.8079315,66681.0,66680.0,0.009273]
[1722337710951,2.1078682,66681.0,66680.0,0.009273]
[1722337711338,2.09851531,66681.0,66680.0,0.009273]
[1722337711593,2.1078683,66681.0,66680.0,0.009273]
[1722337713437,2.11986837,66681.0,66680.0,0.010273]
[1722337714356,2.25461177,66681.0,66680.0,0.010273]
[1722337714918,2.11986837,66681.0,66680.0,0.010273]
[1722337715706,2.13986837,66681.0,66680.0,0.010273]
[1722337716571,2.11986837,66681.0,66680.0,0.010273]
[1722337716714,2.13986837,66681.0,66680.0,0.010273]
[1722337717307,2.13986837,66681.0,66680.0,1e-08]
[1722337717506,2.13986838,66681.0,66680.0,1e-08]
[1722337717795,2.13986838,66681.0,66663.0,0.009284]
[1722337717796,1.494532,66670.0,66663.0,0.009284]
[1722337717908,2.08189617,66670.0,66663.0,0.009284]
[1722337718108,2.1042503,66670.0,66663.0,0.009284]
[1722337718730,2.1342503,66670.0,66663.0,0.009284]
[1722337718952,2.1142503,66670.0,66663.0,0.009284]
[1722337719167,2.1282503,66670.0,66669.0,0.010284]
[1722337719331,2.1142503,66670.0,66669.0,0.009284]
[1722337719907,1.95820185,66670.0,66669.0,0.010284]
[1722337720808,1.94420185,66670.0,66669.0,0.009284]
[1722337721060,1.49961685,66670.0,66669.0,0.009284]
[1722337721282,1.47661685,66670.0,66669.0,0.009284]
[1722337721524,1.63659517,66670.0,66669.0,0.009284]
[1722337721898,0.48594585,66670.0,66669.0,0.009284]
[1722337722104,0.009,66670.0,66669.0,0.339784]
[1722337722305,0.009,66670.0,66669.0,0.789767]
[1722337722449,0.009,66670.0,66669.0,0.81046417]
[1722337722863,0.009,66670.0,66669.0,0.51047517]
[1722337723657,0.299946,66679.0,66669.0,0.16788117]
[1722337723803,0.001,66670.0,66669.0,0.31887517]
[1722337724008,0.001,66670.0,66669.0,0.61886417]
[1722337724250,0.001,66670.0,66669.0,0.16888117]
[1722337725253,0.149983,66674.0,66669.0,0.31787517]
[1722337725508,0.32624916,66676.0,66669.0,0.31987517]
[1722337725707,0.149984,66674.0,66669.0,0.16988117]
[1722337725922,0.149984,66674.0,66669.0,0.16788117]
[1722337726126,0.3299456,66678.0,66672.0,0.07534716]
[1722337726127,0.0299946,66678.0,66672.0,0.07534716]
[1722337726374,0.149973,66679.0,66674.0,0.0641]
[1722337726606,0.02584127,66679.0,66674.0,0.214082]
[1722337726841,0.02584127,66679.0,66675.0,0.10312539]
[1722337727046,0.17581327,66679.0,66675.0,0.10312539]
[1722337727785,0.02584127,66679.0,66675.0,0.10312539]
[1722337728197,0.02584127,66679.0,66676.0,0.149978]
[1722337728401,0.299915,66686.0,66675.0,0.10312539]
[1722337728402,0.299913,66686.0,66677.0,0.02142512]
[1722337728585,0.299913,66686.0,66675.0,0.2743]
[1722337728586,0.02533521,66685.0,66679.0,0.149971]
[1722337728792,0.001,66679.0,66678.0,0.149974]
[1722337729002,0.149961,66684.0,66678.0,0.214774]
[1722337729369,0.02539144,66684.0,66679.0,0.0015542]
[1722337729568,0.02539144,66684.0,66678.0,0.0648]
[1722337729569,0.299932,66682.0,66678.0,0.0648]
[1722337729767,0.149969,66681.0,66678.0,0.0648]
[1722337730143,0.001,66679.0,66678.0,0.0678]
[1722337730998,0.149969,66681.0,66678.0,0.0648]
[1722337732115,0.14997,66680.0,66678.0,0.0648]
[1722337732317,0.299932,66682.0,66678.0,0.0648]
[1722337732318,0.299937,66681.0,66678.0,0.0648]
[1722337732526,0.449916,66679.0,66678.0,0.0648]
[1722337732742,0.149972,66679.0,66678.0,0.0648]
[1722337732943,0.14997,66680.0,66678.0,0.0648]
[1722337733155,0.149968,66681.0,66678.0,0.0668]
[1722337733367,0.149968,66681.0,66679.0,0.01952946]
[1722337734392,0.150968,66681.0,66679.0,0.01952946]
[1722337734751,0.149968,66681.0,66679.0,0.01952946]
[1722337734953,0.150968,66681.0,66679.0,0.02152946]
[1722337735220,0.14997,66680.0,66679.0,0.02152946]
[1722337735617,0.150968,66681.0,66679.0,0.02152946]
[1722337736382,0.14997,66680.0,66679.0,0.02152946]
[1722337737089,0.14997,66680.0,66679.0,0.01952946]
[1722337737588,0.15097,66680.0,66679.0,0.02152946]
[1722337739821,0.45091,66680.0,66679.0,0.02152946]
[1722337740288,0.75085,66680.0,66679.0,0.02152946]
[1722337740489,0.75085,66680.0,66679.0,0.002]
[1722337742366,0.45091,66680.0,66679.0,0.002]
[1722337742807,0.45091,66680.0,66679.0,0.02155133]
[1722337743148,0.75085,66680.0,66679.0,0.02155133]
[1722337743729,0.75085,66680.0,66679.0,0.002]
[1722337745232,1.48122238,66680.0,66679.0,0.002]
[1722337745437,1.18128238,66680.0,66679.0,0.002]
[1722337746812,1.07635012,66680.0,66679.0,0.002]
[1722337747347,0.149988,66672.0,66671.0,0.1471]
[1722337747771,0.149988,66672.0,66671.0,0.16664733]
[1722337748170,0.299964,66675.0,66671.0,0.16664733]
[1722337748372,0.149984,66674.0,66671.0,0.16664733]
[1722337748595,0.149985,66673.0,66671.0,0.16664733]
[1722337748792,0.149988,66672.0,66671.0,0.16664733]
[1722337748995,0.149988,66672.0,66671.0,0.16864733]
[1722337748996,0.450964,66672.0,66671.0,0.16864733]
[1722337749197,0.449964,66672.0,66671.0,0.16664733]
[1722337749400,0.149988,66672.0,66671.0,0.16664733]
[1722337750675,0.149988,66672.0,66671.0,0.16864733]
[1722337751075,0.82766162,66672.0,66671.0,0.16664733]
[1722337751255,0.52768562,66672.0,66671.0,0.1471]
[1722337751646,0.52868562,66672.0,66671.0,0.16871943]
[1722337751838,0.450964,66672.0,66671.0,0.16871943]
[1722337752046,0.450964,66672.0,66671.0,0.16875442]
[1722337752410,0.450964,66672.0,66671.0,0.1491]
[1722337752812,0.450964,66672.0,66671.0,0.16875442]
[1722337753431,0.55960839,66672.0,66671.0,0.02165442]
[1722337753633,0.75094,66672.0,66671.0,0.002]
[1722337754040,0.450964,66672.0,66671.0,0.002]
[1722337754994,0.450964,66672.0,66671.0,0.02165436]
[1722337755180,0.450964,66672.0,66671.0,0.002]
[1722337755355,0.450964,66672.0,66671.0,0.02165606]
[1722337755562,0.450964,66672.0,66671.0,0.002]
[1722337755761,0.450964,66672.0,66671.0,0.02165594]
[1722337755936,0.450964,66672.0,66671.0,0.002]
[1722337756138,0.450964,66672.0,66671.0,0.02165594]
[1722337756388,0.450964,66672.0,66671.0,0.002]
[1722337756542,0.450964,66672.0,66671.0,0.02165594]
[1722337756738,0.450964,66672.0,66671.0,0.002]
[1722337757228,0.450964,66672.0,66671.0,0.02165594]
[1722337761304,0.001,66672.0,66671.0,0.09755594]
[1722337761500,0.001,66672.0,66671.0,0.4334178]
[1722337761747,0.001,66672.0,66671.0,1.0333778]
[1722337761896,0.001,66672.0,66671.0,0.7333978]
[1722337762743,0.001,66672.0,66671.0,0.73339293]
[1722337763412,0.001,66672.0,66671.0,0.73339306]
[1722337764142,0.001,66672.0,66671.0,0.28342306]
[1722337764325,0.001,66672.0,66671.0,0.15875594]
[1722337764560,0.001,66672.0,66671.0,0.16031014]
[1722337765015,0.1960819,66672.0,66671.0,0.16031014]
[1722337765191,0.150988,66672.0,66671.0,0.15875594]
[1722337765407,0.450964,66672.0,66671.0,0.15875594]
[1722337773761,0.75094,66672.0,66671.0,0.15875594]
[1722337774323,0.75094,66672.0,66671.0,0.1391]
[1722337775225,0.75094,66672.0,66671.0,0.0779]
[1722337775399,0.75094,66672.0,66671.0,0.09766265]
[1722337777561,0.75094,66672.0,66671.0,0.0779]
[1722337778024,0.85694953,66672.0,66671.0,0.0779]
[1722337778756,0.85694953,66672.0,66671.0,0.002]
[1722337778757,1.07737588,66672.0,66671.0,0.002]
[1722337778958,1.08672764,66672.0,66671.0,0.002]
[1722337779690,1.08672764,66672.0,66671.0,0.002913]
[1722337779866,1.08672764,66672.0,66671.0,0.000913]
[1722337779867,1.08572803,66672.0,66671.0,0.000913]
[1722337780080,1.23642235,66672.0,66671.0,0.000913]
[1722337780414,1.34064897,66672.0,66671.0,0.002913]
[1722337780586,1.35000115,66672.0,66671.0,0.002913]
[1722337780789,1.3499925,66672.0,66671.0,0.002913]
[1722337781290,1.34064033,66672.0,66671.0,0.002913]
[1722337782033,1.34063449,66672.0,66671.0,0.002913]
[1722337782240,1.34063454,66672.0,66671.0,0.002913]
[1722337782844,1.2280702,66672.0,66671.0,0.002913]
[1722337783002,1.34063142,66672.0,66671.0,0.002913]
[1722337783475,1.34062732,66672.0,66671.0,0.002913]
[1722337785105,1.78030332,66672.0,66671.0,0.002913]
[1722337785273,1.78029378,66672.0,66671.0,0.002913]
[1722337785473,1.6677462,66672.0,66671.0,0.002913]
[1722337785823,1.7802983,66672.0,66671.0,0.002913]
[1722337786029,1.6667462,66672.0,66671.0,0.000913]
[1722337786245,1.67609856,66672.0,66671.0,0.000913]
[1722337786449,1.77929082,66672.0,66671.0,0.001913]
[1722337786655,1.6667462,66672.0,66671.0,0.001913]
[1722337786880,1.77929082,66672.0,66671.0,0.001913]
[1722337787272,1.6667462,66672.0,66671.0,0.001913]
[1722337787634,1.77929082,66672.0,66671.0,0.001913]
[1722337789071,1.75329843,66672.0,66671.0,0.001913]
[1722337789758,1.75329898,66672.0,66671.0,0.001913]
[1722337797486,1.67609898,66672.0,66671.0,0.001913]
[1722337799009,1.08572866,66672.0,66671.0,0.001913]
[1722337799213,1.07637588,66672.0,66671.0,0.001913]
[1722337800699,0.77639988,66672.0,66671.0,0.001913]
[1722337801051,1.07637588,66672.0,66671.0,0.001913]
[1722337801823,0.77639988,66672.0,66671.0,0.001913]
[1722337802247,0.77639988,66672.0,66671.0,0.02404294]
[1722337802471,0.77639988,66672.0,66671.0,0.001913]
[1722337802721,1.07637588,66672.0,66671.0,0.001913]
[1722337805374,0.77639988,66672.0,66671.0,0.001913]
[1722337806408,0.78575191,66672.0,66671.0,0.001913]
[1722337806714,1.08572791,66672.0,66671.0,0.001913]
[1722337807117,1.30916427,66672.0,66671.0,0.001913]
[1722337807359,1.16292791,66672.0,66671.0,0.001913]
[1722337807585,1.60900391,66672.0,66671.0,0.001913]
[1722337807724,1.91469357,66672.0,66671.0,0.001913]
[1722337807937,1.73200391,66672.0,66671.0,0.001913]
[1722337808568,1.72265188,66672.0,66671.0,0.001913]
[1722337808791,1.8826979,66672.0,66671.0,0.000913]
[1722337809206,1.8184979,66672.0,66671.0,0.000913]
[1722337812005,1.81849829,66672.0,66671.0,0.000913]
[1722337812539,1.81849803,66672.0,66671.0,0.000913]
[1722337814242,1.8091462,66672.0,66671.0,0.000913]
[1722337814442,1.81849354,66672.0,66671.0,0.000913]
[1722337817240,2.11846954,66672.0,66671.0,0.000913]
[1722337817743,1.81849354,66672.0,66671.0,0.000913]
[1722337817985,2.11846954,66672.0,66671.0,0.000913]
[1722337818190,1.81849354,66672.0,66671.0,0.000913]
[1722337818596,2.11846885,66672.0,66671.0,0.000913]
[1722337820425,1.81849285,66672.0,66671.0,0.000913]
[1722337821006,2.11846885,66672.0,66671.0,0.000913]
[1722337822139,2.11846772,66672.0,66671.0,0.000913]
[1722337822552,2.11846702,66672.0,66671.0,0.000913]
[1722337824374,2.11846644,66672.0,66671.0,0.000913]
[1722337825193,1.8091462,66672.0,66671.0,0.000913]
[1722337825394,1.73549128,66672.0,66671.0,0.000913]
[1722337825646,1.80728451,66672.0,66671.0,0.000913]
[1722337826797,1.67239128,66672.0,66671.0,0.000913]
[1722337828539,1.6630462,66672.0,66671.0,0.000913]
[1722337828740,1.67239056,66672.0,66671.0,0.000913]
[1722337829174,1.97236656,66672.0,66671.0,0.000913]
[1722337830830,1.98236656,66672.0,66671.0,0.000913]
[1722337831067,1.97236656,66672.0,66671.0,0.000913]
[1722337831216,2.05956656,66672.0,66671.0,0.000913]
[1722337832029,2.05956708,66672.0,66671.0,0.000913]
[1722337832576,1.80959072,66672.0,66671.0,0.000913]
[1722337832966,2.10956672,66672.0,66671.0,0.000913]
[1722337833662,1.80959072,66672.0,66671.0,0.000913]
[1722337834300,2.10956633,66672.0,66671.0,0.000913]
[1722337834509,2.2613281,66672.0,66671.0,0.000913]
[1722337835056,1.8841521,66672.0,66671.0,0.000913]
[1722337835331,1.59889532,66672.0,66671.0,0.000913]
[1722337835493,1.09871932,66672.0,66671.0,0.000913]
[1722337835695,1.09871932,66672.0,66671.0,0.139613]
[1722337835894,1.08937588,66672.0,66671.0,0.139613]
[1722337837293,0.76294,66672.0,66671.0,0.139613]
[1722337837946,0.74994,66672.0,66671.0,0.139613]
[1722337838435,0.74994,66672.0,66671.0,0.141613]
[1722337839196,0.449964,66672.0,66671.0,0.141613]
[1722337839601,0.449964,66672.0,66671.0,0.15539609]
[1722337839810,0.74994,66672.0,66671.0,0.15539609]
[1722337840232,0.74994,66672.0,66671.0,0.141613]
[1722337841816,0.449964,66672.0,66671.0,0.141613]
[1722337841985,0.01567629,66675.0,66671.0,0.002913]
[1722337842328,0.16565729,66675.0,66673.0,0.1371]
[1722337842549,0.16565729,66675.0,66674.0,0.1371]
[1722337842751,0.46561929,66675.0,66674.0,0.15085537]
[1722337843534,0.76558129,66675.0,66674.0,0.15085537]
[1722337843869,0.46561929,66675.0,66674.0,0.15085537]
[1722337845052,0.46661929,66675.0,66674.0,0.15085537]
[1722337845206,0.46561929,66675.0,66674.0,0.15085537]
[1722337845599,0.46661929,66675.0,66674.0,0.15085537]
[1722337845799,0.46561929,66675.0,66674.0,0.15085537]
[1722337846352,0.46661929,66675.0,66674.0,0.15385537]
[1722337846969,0.01667629,66675.0,66674.0,0.15385537]
[1722337847173,0.001,66675.0,66674.0,0.15385537]
[1722337847577,0.001,66675.0,66674.0,0.30383837]
[1722337847714,0.001,66675.0,66674.0,0.15385537]
[1722337851091,0.001,66675.0,66674.0,0.30383837]
[1722337851295,0.001,66675.0,66674.0,0.15385537]
[1722337851925,0.299945,66679.0,66674.0,0.01675537]
[1722337852094,0.299945,66679.0,66675.0,0.1401]
[1722337852095,0.149976,66678.0,66675.0,0.1401]
[1722337852299,0.149977,66677.0,66676.0,0.1401]
[1722337852536,0.749883,66677.0,66676.0,0.15384495]
[1722337852735,0.44993,66677.0,66676.0,0.15384495]
[1722337853540,0.149977,66677.0,66676.0,0.15384495]
[1722337854060,0.44993,66677.0,66676.0,0.15384495]
[1722337854964,0.149977,66677.0,66676.0,0.15384495]
[1722337855373,0.44993,66677.0,66676.0,0.15384495]
[1722337855805,0.44993,66677.0,66676.0,0.15784495]
[1722337856138,0.300772,66680.0,66677.0,0.1448]
[1722337856139,0.149972,66679.0,66677.0,0.1448]
[1722337856346,0.149972,66679.0,66678.0,0.15192421]
[1722337857111,0.00083,66680.0,66678.0,0.15192421]
[1722337857112,0.00083,66680.0,66679.0,0.588116]
[1722337857312,0.00083,66680.0,66679.0,1.380804]
[1722337857436,0.00083,66680.0,66679.0,1.40652614]
[1722337857790,0.00083,66680.0,66679.0,1.39452614]
[1722337859258,0.00083,66680.0,66679.0,1.09458214]
[1722337859458,0.00083,66680.0,66679.0,0.90878214]
[1722337859459,0.00183,66680.0,66679.0,0.90878214]
[1722337860420,0.00183,66680.0,66679.0,0.60883814]
[1722337860843,0.00183,66680.0,66679.0,0.90878214]
[1722337861473,0.00183,66680.0,66679.0,1.03923115]
[1722337861678,0.00183,66680.0,66679.0,1.39466419]
[1722337862091,0.00183,66680.0,66679.0,1.81925355]
[1722337862503,0.00183,66680.0,66679.0,1.80725355]
[1722337862727,0.00183,66680.0,66679.0,1.81725355]
[1722337863081,0.00183,66680.0,66679.0,1.81724975]
[1722337863469,0.00183,66680.0,66679.0,1.67680328]
[1722337863668,0.00183,66680.0,66679.0,1.37685928]
[1722337863881,0.00183,66680.0,66679.0,1.18405928]
[1722337864296,0.00183,66680.0,66679.0,1.05941518]
[1722337865355,0.00183,66680.0,66679.0,1.03343056]
[1722337865568,0.00183,66680.0,66679.0,0.90878214]
[1722337866710,0.00183,66680.0,66679.0,0.15892214]
[1722337866711,0.1518,66680.0,66679.0,0.15892214]
[1722337866918,0.45174,66680.0,66679.0,0.02072214]
[1722337867105,0.75168,66680.0,66679.0,0.02072214]
[1722337867310,1.05162,66680.0,66679.0,0.02072214]
[1722337867621,0.75168,66680.0,66679.0,0.007]
[1722337867844,0.45174,66680.0,66679.0,0.007]
[1722337868049,0.45174,66680.0,66679.0,0.0883]
[1722337868446,0.75168,66680.0,66679.0,0.10199627]
[1722337868905,0.75168,66680.0,66679.0,0.0883]
[1722337869709,0.45174,66680.0,66679.0,0.0883]
[1722337869953,0.00183,66680.0,66679.0,0.1492]
[1722337870326,0.00183,66680.0,66679.0,0.1628979]
[1722337871256,0.1518,66680.0,66679.0,0.1628979]
[1722337871858,0.00183,66680.0,66679.0,0.1628979]
[1722337872060,0.00183,66680.0,66679.0,0.3128699]
[1722337873284,0.00183,66680.0,66679.0,0.9127579]
[1722337875161,0.00183,66680.0,66679.0,0.1628979]
[1722337875162,0.1518,66680.0,66679.0,0.1628979]
[1722337875360,0.00183,66680.0,66679.0,0.1628979]
[1722337876604,0.00183,66680.0,66679.0,0.3128699]
[1722337876809,0.00183,66680.0,66679.0,0.1628979]
[1722337880154,0.00183,66680.0,66679.0,0.3128699]
[1722337880509,0.00183,66680.0,66679.0,0.1628979]
[1722337883200,0.00183,66680.0,66679.0,0.3128699]
[1722337883593,0.00183,66680.0,66679.0,0.1628979]
[1722337884280,0.1518,66680.0,66679.0,0.1628979]
[1722337884627,0.00183,66680.0,66679.0,0.1019979]
[1722337891624,0.00083,66680.0,66679.0,0.0949979]
[1722337892162,0.00183,66680.0,66679.0,0.1019979]
[1722337892371,0.00083,66680.0,66679.0,0.0949979]
[1722337893956,0.00183,66680.0,66679.0,0.1009979]
[1722337894158,0.1518,66680.0,66679.0,0.1009979]
[1722337894412,0.1518,66680.0,66679.0,0.0196979]
[1722337894637,0.96111362,66680.0,66679.0,0.0196979]
[1722337894765,1.21588012,66680.0,66679.0,0.0196979]
[1722337894971,1.51582012,66680.0,66679.0,0.006]
[1722337895352,1.52517067,66680.0,66679.0,0.006]
[1722337895746,1.602095,66680.0,66679.0,0.006]
[1722337895948,1.049916,66672.0,66671.0,0.000913]
[1722337896093,1.34691924,66672.0,66671.0,0.000913]
[1722337896296,1.22507588,66672.0,66671.0,0.000913]
[1722337896696,1.34691828,66672.0,66671.0,0.000913]
[1722337896874,1.22507588,66672.0,66671.0,0.000913]
[1722337897516,1.14207588,66672.0,66671.0,0.000913]
[1722337898350,1.14307588,66672.0,66671.0,0.004913]
[1722337903371,0.450964,66672.0,66671.0,0.143513]
[1722337903711,0.75094,66672.0,66671.0,0.1555828]
[1722337904220,0.75094,66672.0,66671.0,0.143513]
[1722337904853,0.75094,66672.0,66671.0,0.004913]
[1722337905167,1.199516,66672.0,66671.0,0.004913]
[1722337906760,1.050916,66672.0,66671.0,0.004913]
[1722337913533,1.07737588,66672.0,66671.0,0.004913]
[1722337914297,1.16007588,66672.0,66671.0,0.004913]
[1722337921762,1.07737588,66672.0,66671.0,0.004913]
[1722337925172,1.08672256,66672.0,66671.0,0.004913]
[1722337926010,1.08672254,66672.0,66671.0,0.004913]
[1722337928580,1.08672254,66672.0,66671.0,0.070513]
[1722337928746,1.07737588,66672.0,66671.0,0.150613]
[1722337929147,1.07737588,66672.0,66671.0,0.004913]
[1722337935482,1.07737588,66672.0,66671.0,0.104913]
[1722337935865,1.050916,66672.0,66671.0,0.18353565]
[1722337938538,0.150988,66672.0,66671.0,0.26613565]
[1722337938738,0.001,66672.0,66671.0,0.32392213]
[1722337939076,0.150988,66672.0,66671.0,0.4486009]
[1722337939284,0.150988,66672.0,66671.0,0.39081197]
[1722337939483,0.450964,66672.0,66671.0,0.26613565]
[1722337941550,0.150988,66672.0,66671.0,0.26613565]
[1722337942086,0.450964,66672.0,66671.0,0.26613565]
[1722337942290,0.75094,66672.0,66671.0,0.26613565]
[1722337943100,0.75094,66672.0,66671.0,0.253313]
[1722337943307,1.050916,66672.0,66671.0,0.253313]
[1722337943510,1.050916,66672.0,66671.0,0.11772539]
[1722337944028,1.16345696,66672.0,66671.0,0.11772539]
[1722337944343,1.16345696,66672.0,66671.0,0.104913]
[1722337944763,1.25641684,66672.0,66671.0,0.104913]
[1722337945172,1.14387588,66672.0,66671.0,0.104913]
[1722337947216,1.07737588,66672.0,66671.0,0.104913]
[1722337948218,1.18993511,66672.0,66671.0,0.104913]
[1722337949608,1.18991977,66672.0,66671.0,0.104913]
[1722337951287,1.18991977,66672.0,66671.0,0.241613]
[1722337951588,0.75094,66672.0,66671.0,0.241613]
[1722337951740,0.450964,66672.0,66671.0,0.241613]
[1722337951943,0.450964,66672.0,66671.0,0.25448921]
[1722337952365,0.75094,66672.0,66671.0,0.25448921]
[1722337953721,0.75094,66672.0,66671.0,0.241613]
[1722337953937,0.450964,66672.0,66671.0,0.241613]
[1722337954122,0.450964,66672.0,66671.0,0.25448921]
[1722337955181,0.75094,66672.0,66671.0,0.25448921]
[1722337955990,0.450964,66672.0,66671.0,0.25448921]
[1722337956186,0.75094,66672.0,66671.0,0.25448921]
[1722337956433,0.450964,66672.0,66671.0,0.25448921]
[1722337957680,0.75094,66672.0,66671.0,0.25448921]
[1722337957879,0.450964,66672.0,66671.0,0.25448921]
[1722337958349,0.75094,66672.0,66671.0,0.25448921]
[1722337958566,0.75094,66672.0,66671.0,0.19388921]
[1722337959029,0.75094,66672.0,66671.0,0.11993525]
[1722337959030,1.15447588,66672.0,66671.0,0.11993525]
[1722337959470,1.26696458,66672.0,66671.0,0.104913]
[1722337960393,1.18986458,66672.0,66671.0,0.104913]
[1722337962647,1.16381793,66672.0,66671.0,0.104913]